Cogmind - Beta 17 @@@ ROGUE MODE // 2026.08.22 @ 02:39:14 Player: LandRaider Result: Destroyed by S-43 Plague with Heavy Machine Gun Performance ------------- Evolutions (9) 4500 Regions Visited (10) 2000 Robots Destroyed (76) 380 Value Destroyed (2356) 2356 Prototype IDs (8) 160 Alien Tech Used (0) 0 Bonus (0) 0 TOTAL SCORE: 9396 Bonus ------- None Cogmind --------- Core Integrity 0/1600 Matter 55/300 Energy 43/100 System Corruption 32% Temperature Cool (0) Movement Core (50) Location -1/Access Parts ------- > --- POWER (3) -------- (None) > --- PROPULSION (8) --- (None) > --- UTILITY (12) ----- Advanced Signal Interpreter Advanced Terrain Scan Processor Advanced Target Analyzer > --- WEAPON (2) ------- (None) > --- INVENTORY (5) ---- Linear Gravjet Improved Antigrav System Small Battery (100) Dispersion Rifle Advanced Remote Datajack Peak State ------------ > --- POWER ------------ Micro Antimatter Reactor Micro Antimatter Reactor Light Quantum Reactor > --- PROPULSION ------- Heavy Siege Treads Myomer Leg Myomer Leg Myomer Leg Centrium Leg Gyrokinetic Inverter Improved Antigrav System > --- UTILITY ---------- Advanced Heat Sink Small Battery Structural Scanner Advanced Signal Interpreter Terrain Scanner Advanced Terrain Scan Processor Weapon Mount Advanced Transmission Jammer Advanced Reaction Control System Improved Point Defense System Advanced Hacking Suite Advanced System Shield > --- WEAPON ----------- Gamma Rifle Linear Accelerator > --- INVENTORY -------- Micro Antimatter Reactor Gamma Rifle Phase Gun Grenade Launcher Advanced Remote Datajack [Rating: 156] Favorites ----------- Power Micro Antimatter Reactor Engine Ion Engine Power Core Light Fission Core Reactor Micro Antimatter Reactor Propulsion Improved VTOL Module Treads Light Treads Leg Myomer Leg Wheel Wheel Hover Unit Improved Antigrav System Flight Unit Improved VTOL Module Utility System Shield Device ECM Suite Storage Small Storage Unit Processor Advanced Signal Interpreter Hackware System Shield Protection Light Armor Plating Weapon Makeshift Sword Energy Gun Particle Gun Energy Cannon Heavy Neutron Cannon Ballistic Gun Light Assault Rifle Ballistic Cannon Linear Accelerator Launcher Grenade Launcher Slashing Weapon Makeshift Sword Piercing Weapon Plasma Lance Build | -11 -10 -10 -8 -7 -6 -5 -4 -3 -2 -1 ------- Run | Yrd Mat Sub Mat Fac Fac Fac Fac Res Res Acc Slots Evolved 18 | . . . 4 2 2 2 2 2 2 2 Power 2 | . . . . . . . . 1 . 1 Propulsion 6 | . . . 2 . 1 1 1 . 1 . Utility 10 | . . . 2 2 1 1 1 1 1 1 Weapon . | . . . . . . . . . . . Parts Attached 159 | 7 13 1 18 9 10 2 9 10 6 74 Power 21 | 1 1 . 1 3 . 1 . 1 2 11 Engine 7 | 1 1 . 1 3 . . . . 1 . Core 1 | . . . . . . 1 . . . . Reactor 13 | . . . . . . . . 1 1 11 Propulsion 46 | 2 5 . 9 . 3 . 2 2 1 22 Treads 11 | . . . 5 . . . . . . 6 Leg 9 | 2 2 . . . . . . . . 5 Wheel 6 | . 3 . . . . . . . . 3 Hover 8 | . . . . . . . . . . 8 Flight 12 | . . . 4 . 3 . 2 2 1 . Utility 65 | 2 3 . 6 3 4 1 7 6 2 31 Device 44 | 1 2 . 2 1 3 1 4 5 2 23 Storage 7 | 1 1 . 1 . . . 1 . . 3 Processor 6 | . . . . 1 . . 1 . . 4 Hackware 6 | . . . 3 . 1 . 1 1 . . Protection 2 | . . . . 1 . . . . . 1 Artifact . | . . . . . . . . . . . Weapon 27 | 2 4 1 2 3 3 . . 1 1 10 Energy Gun 13 | 2 2 . 1 1 1 . . . . 6 Energy Cannon 2 | . . . . . . . . 1 1 . Ballistic Gun 5 | . 2 . 1 . 2 . . . . . Ballistic Cannon 2 | . . . . . . . . . . 2 Launcher 2 | . . . . 2 . . . . . . Special Weapon . | . . . . . . . . . . . Impact Weapon . | . . . . . . . . . . . Slashing Weapon 1 | . . 1 . . . . . . . . Piercing Weapon 2 | . . . . . . . . . . 2 Special Melee Weapon . | . . . . . . . . . . . Unidentified Prototypes 8 | . . . 2 2 2 . . 1 . 1 Parts Lost 80 | . 2 . . 1 . 1 . 3 16 57 Power 11 | . 1 . . 1 . . . 1 . 8 Propulsion 26 | . . . . . . 1 . . 7 18 Utility 32 | . 1 . . . . . . 1 9 21 Weapon 11 | . . . . . . . . 1 . 10 Highest Loss Streak 33 | . 1 . . 1 . 1 . 2 16 33 To Critical Strikes 3 | . . . . . . . . . . 3 Average Backups 8 | 5 10 15 12 7 7 7 7 9 9 5 Power . | . . . . . 1 2 2 1 1 . Propulsion 1 | 2 4 4 1 . . . . . . . Utility 2 | . 1 5 5 2 3 3 2 4 2 . Weapon 3 | 1 2 6 5 4 2 2 3 2 3 2 Tool/Special . | . . . . . . . . . . . Unused Backups 27 | 1 2 1 10 . 1 1 2 1 2 6 Power 1 | . . . . . . 1 . . . . Propulsion 5 | . . . 3 . . . . . . 2 Utility 12 | 1 . . 6 . . . 2 1 1 1 Weapon 6 | . 2 1 1 . 1 . . . . 1 Tool/Special 3 | . . . . . . . . . 1 2 Average Slot Usage (%) 88 | . 96 100 98 91 95 85 84 89 85 74 Engine 5 | . 13 14 9 6 6 4 . 4 1 . Reactor 2 | . . . . . . . . . 6 9 Treads 3 | . . . 23 . . . . . . 5 Leg 5 | . 25 . . . . . . . . 6 Wheel 3 | . 2 28 . . . . . . . 1 Hover 1 | . . . . . . . . . . 4 Flight 13 | . . . 11 30 29 26 27 28 29 . Device 17 | . 10 14 8 22 13 14 22 23 24 21 Storage 7 | . 14 14 9 7 6 5 5 4 4 3 Processor 3 | . . . . . 6 5 5 4 4 7 Hackware 9 | . . . 17 15 18 17 13 13 12 6 Energy Gun 5 | . 22 8 7 . . . . . 1 2 Ballistic Gun 2 | . 4 9 5 . 5 2 . . . . Slashing Weapon 3 | . . 9 5 6 6 5 5 2 . . Peak Build Rating 156 | 8 10 13 31 35 58 59 90 111 134 156 Average Rating 61 | 5 8 11 25 30 48 54 69 105 114 119 On Entrance 38 | . 7 10 13 28 34 58 51 90 109 24 Avg Prop Armor Cover (%) 15 | . 10 . 1 . . . . . . 15 Naked Turns . | . . . . . . . . . . . Heaviest Build 95 | 14 32 32 34 18 20 22 32 54 60 95 Greatest Support 173 | 20 20 20 80 20 26 26 41 46 54 173 Greatest Overweight (x) 15 | 3 3 1 2 . . . . 1 3 15 Average Overweight (x) . | . . 1 . . . . . . . . Largest Inventory Capacity 15 | 8 15 15 15 8 8 8 10 10 10 10 Average Capacity 9 | 7 11 15 13 8 8 8 8 10 10 6 Most Carried 15 | 8 15 15 15 8 8 8 10 10 10 10 Average Carried 8 | 5 10 15 12 7 7 7 7 9 9 5 Final Capacity 15 | 8 15 15 8 8 8 8 10 10 10 5 Final Carried 15 | 8 15 15 8 7 8 8 10 9 10 5 Class Distribution -------------------- 28% | Mutant 15% | Hacker-Sprinter 14% | Hacker-Ninja 10% | Hacker-Mutant 10% | Scavenger-Sprinter 10% | Scavenger-Skirmisher 5% | Scavenger-Assassin Dominant Class ---------------- Mutant | -10/Materials Mutant | -10/Subcaves Hacker-Mutant | -8/Materials Scavenger-Sprinter | -7/Factory Hacker-Sprinter | -6/Factory Hacker-Assassin | -5/Factory Hacker-Ninja | -4/Factory Hacker-Ninja | -3/Research Hacker-Sprinter | -2/Research Scavenger-Skirmisher | -1/Access Resources | -11 -10 -10 -8 -7 -6 -5 -4 -3 -2 -1 ----------- Run | Yrd Mat Sub Mat Fac Fac Fac Fac Res Res Acc Matter Collected 2215 | 270 133 23 266 129 180 20 138 . 48 1008 Remotely 20 | . 20 . . . . . . . . . Salvage Created 2992 | 170 582 156 341 139 129 61 125 . 18 1271 Parts 182 | 13 28 11 24 9 9 6 6 . 5 71 Haulers Intercepted 5 | . 1 . 1 2 1 . . . . . Recyclers Shooed 2 | . 1 . . . . . . . . 1 Parts Field Recycled . | . . . . . . . . . . . Retrieved Matter . | . . . . . . . . . . . Parts Self-Destructed 3 | . . 3 . . . . . . . . Prevented . | . . . . . . . . . . . Parts Restored . | . . . . . . . . . . . Kills | -11 -10 -10 -8 -7 -6 -5 -4 -3 -2 -1 ------- Run | Yrd Mat Sub Mat Fac Fac Fac Fac Res Res Acc Combat Hostiles Destroyed 45 | . 14 3 9 . . 1 . . . 18 Melee 8 | . . 1 1 . . 1 . . . 5 Guns 27 | . 14 2 8 . . . . . . 3 Cannons 10 | . . . . . . . . . . 10 Classes Destroyed 15 | 2 6 2 1 1 . . . . 1 2 Worker 7 | . . . . 1 1 2 1 . . 2 Builder 2 | . . . . . . . . . 1 1 Tunneler 5 | 4 . . . 1 . . . . . . Hauler 5 | . 1 . 1 2 1 . . . . . Recycler 5 | 1 1 . 1 . . . 1 . . 1 Mechanic 2 | . 1 . 1 . . . . . . . Operator 3 | . 1 . . . 1 . . . . 1 Watcher 2 | . 1 . 1 . . . . . . . Swarmer 14 | . 6 . 7 . . 1 . . . . Grunt 13 | . 8 2 . . . . . . . 3 Sentry 4 | . . . 2 . . . . . . 2 Hunter 1 | . . . . . . . . . . 1 Programmer 12 | . . . . . . . . . . 12 Artisan 1 | . . 1 . . . . . . . . Subdweller 1 | . . 1 . . . . . . . . Best Kill Streak 5 | 5 5 2 5 2 2 2 2 . 1 3 Combat Bots Only 5 | . 5 2 4 . . 1 . . . 3 Max Kills in Single Turn 2 | 1 1 1 2 1 1 1 1 . 1 1 Gunslinging . | . . . . . . . . . . . Exploded . | . . . . . . . . . . . Melee 1 | . . 1 1 . . 1 . . . 1 Uniques/NPCs Destroyed . | . . . . . . . . . . . Combat | -11 -10 -10 -8 -7 -6 -5 -4 -3 -2 -1 -------- Run | Yrd Mat Sub Mat Fac Fac Fac Fac Res Res Acc Hostile Shots Fired 959 | . 64 15 63 21 9 9 16 30 103 629 Missed 310 | . 13 4 20 9 4 3 6 16 42 193 Hits 649 | . 51 11 43 12 5 6 10 14 61 436 Melee 5 | . . . . . . . . . 5 . Projectile 644 | . 51 11 43 12 5 6 10 14 56 436 AOE 4 | . . . . . . . . . 2 2 Critical Strikes 30 | . . 1 . . . . . 1 7 21 Part Disruptions 3 | . . . . . . . . . 1 2 Damage Taken 12805 | . 515 160 365 182 22 84 42 394 1613 9428 Core 2568 | . 61 83 37 31 . 12 19 120 602 1603 Absorbed by Shields 440 | . . . . . . . . . 31 409 Reduced by Siege Mode 109 | . . . . . . . . . . 109 Ignored by Resistances 58 | . . . . . . . . . . 58 Regen/Repaired (Parts) 417 | . . . . 31 . . . . 9 377 Core Remaining (%) 86 | 100 . 42 93 95 100 98 98 90 58 . Volleys Fired 230 | 10 64 5 30 7 1 . . 12 10 91 Largest 2 | 2 2 2 2 1 1 . . 1 2 2 Hottest 175 | 90 115 85 95 55 15 . . 110 100 175 Shots Fired 391 | 20 125 10 58 7 1 . . 12 16 142 Gun 311 | 20 125 10 58 6 1 . . 1 15 75 Cannon 75 | . . . . . . . . 10 . 65 Launcher 5 | . . . . 1 . . . 1 1 2 Special . | . . . . . . . . . . . Kinetic 109 | . 8 5 44 . 1 . . . . 51 Thermal 232 | 20 117 5 14 6 . . . 10 15 45 Explosive 5 | . . . . 1 . . . 1 1 2 Electromagnetic 45 | . . . . . . . . 1 . 44 Robot Hit Streak 20 | 3 9 4 8 4 . . . 4 5 20 Robot Miss Streak 7 | 2 5 1 7 1 . . . . 2 2 Penetration Max . | . . . . . . . . . . . Secondary Targets 3 | . 1 . 2 . . . . . . . Max Gunslinging Chain 1 | . 1 . 1 . . . . . . . Shots Hit Robots 280 | 12 77 10 32 12 5 4 6 1 6 115 Core Hits 119 | 6 33 5 17 7 3 3 1 . 3 41 Critical Kills . | . . . . . . . . . . . Critical Parts Destroyed 1 | . . . 1 . . . . . . . Critical Strikes 21 | 1 8 . 1 1 1 . . . . 9 Burn 10 | 1 8 . . 1 . . . . . . Destroy 1 | . . . 1 . . . . . . . Blast 4 | . . . . . . . . . . 4 Corrupt 1 | . . . . . . . . . . 1 Sever 1 | . . . . . 1 . . . . . Impale 4 | . . . . . . . . . . 4 Melee Attacks 216 | . . 40 20 53 26 10 36 11 . 20 Impact . | . . . . . . . . . . . Slashing 196 | . . 40 20 53 26 10 36 11 . . Piercing 20 | . . . . . . . . . . 20 Sneak Attacks 15 | . . 1 2 4 3 3 2 . . . Combat Hostiles . | . . . . . . . . . . . Follow-up Attacks . | . . . . . . . . . . . Damage Inflicted 7843 | 139 996 273 819 579 339 275 306 36 137 3944 Guns 3104 | 139 986 54 560 121 . . . 36 137 1071 Cannons 2214 | . . . . . . . . . . 2214 Explosions 130 | . . . . 40 . . . . . 90 Melee 2321 | . . 219 259 418 339 275 306 . . 505 Ramming 74 | . 10 . . . . . . . . 64 Kinetic 2292 | . 25 10 488 . . . . . . 1769 Thermal 2608 | 139 961 44 72 121 . . . . 137 1134 Explosive 130 | . . . . 40 . . . . . 90 Electromagnetic 418 | . . . . . . . . 36 . 382 Impact . | . . . . . . . . . . . Slashing 1816 | . . 219 259 418 339 275 306 . . . Piercing 505 | . . . . . . . . . . 505 Highest Corruption 32 | . . . . 4 1 . . . 8 32 Average Corruption 11 | . . . . 3 1 . . . 3 14 Corruption Purged 8 | . . . . . 1 . . . . 7 Corruption Blocked . | . . . . . . . . . . . Effects 93 | . . . . 12 . . . . 3 78 Message Errors 16 | . . . . 4 . . . . . 12 Matter Fused 19 | . . . . 2 . . . . 1 16 Heat Flow Errors 14 | . . . . 1 . . . . 1 12 Energy Discharges 12 | . . . . 2 . . . . 1 9 Parts Rejected 2 | . . . . . . . . . . 2 Parts Fused 1 | . . . . . . . . . . 1 Data Loss (minor) 11 | . . . . 2 . . . . . 9 Data Loss (major) 3 | . . . . 1 . . . . . 2 Misfires 2 | . . . . . . . . . . 2 Alerts 1 | . . . . . . . . . . 1 Misdirections 8 | . . . . . . . . . . 8 Weapon Failures 4 | . . . . . . . . . . 4 Overload Shots . | . . . . . . . . . . . Overflow Damage 358 | . . 37 3 38 19 36 69 . . 156 Projectiles 102 | . . . . . . . . . . 102 Explosions . | . . . . . . . . . . . Melee 256 | . . 37 3 38 19 36 69 . . 54 Knockbacks 18 | . . . . . . . . . . 18 Impact 1 | . . . . . . . . . . 1 Kinetic 15 | . . . . . . . . . . 15 Secondary 2 | . . . . . . . . . . 2 Self-Inflicted Damage 180 | . . . . . . . . . . 180 Shots 3 | . . . . . . . . . . 3 Rammed 13 | . . . . . . . . . . 13 Targets Rammed 19 | . 3 . . . . . . . . 16 Kicked 5 | . 3 . . . . . . . . 2 Crushed 1 | . . . . . . . . . . 1 Highest Temperature 576 | 90 278 7 . 66 . 6 15 377 176 576 Average Temperature 108 | 38 120 7 . 51 . 6 6 131 50 132 Received Heat Transfer 655 | . 189 99 18 . . 9 . 18 . 322 Effects 25 | . 5 . . . . . . 2 . 18 Shutdowns 7 | . . . . . . . . 2 . 5 Energy Bleed 2 | . . . . . . . . . . 2 Interference 9 | . 5 . . . . . . . . 4 Matter Decay 1 | . . . . . . . . . . 1 Short Circuit 1 | . . . . . . . . . . 1 Damage (major) 5 | . . . . . . . . . . 5 Siege Activations 1 | . . . . . . . . . . 1 Total Turns 18 | . . . . . . . . . . 18 Longest Duration 18 | . . . . . . . . . . 18 Martial Activations . | . . . . . . . . . . . Shielding Activations . | . . . . . . . . . . . Robots Disrupted . | . . . . . . . . . . . Combat Hostiles . | . . . . . . . . . . . Robots Corrupted . | . . . . . . . . . . . Combat Hostiles . | . . . . . . . . . . . Parts Fried . | . . . . . . . . . . . Impact Corruptions . | . . . . . . . . . . . Robots Melted . | . . . . . . . . . . . Combat Hostiles . | . . . . . . . . . . . Parts Melted 7 | 1 6 . . . . . . . . . Heat Transferred 5140 | 446 3103 111 185 259 . . . . 222 814 Parts Sabotaged . | . . . . . . . . . . . Parts Stolen . | . . . . . . . . . . . Parts Stripped . | . . . . . . . . . . . Power Chain Reactions . | . . . . . . . . . . . Alert | -11 -10 -10 -8 -7 -6 -5 -4 -3 -2 -1 ------- Run | Yrd Mat Sub Mat Fac Fac Fac Fac Res Res Acc Maximum Alert Level 1 | . 1 . . . . . . . . . Low Security (%) 99 | 100 95 . 100 100 100 100 100 100 100 100 Level 1 . | . 4 . . . . . . . . . Level 2 . | . . . . . . . . . . . Level 3 . | . . . . . . . . . . . Level 4 . | . . . . . . . . . . . Level 5 . | . . . . . . . . . . . High Security . | . . . . . . . . . . . Max Security . | . . . . . . . . . . . Peak Influence 215 | 10 215 . 122 85 107 20 44 14 50 176 Initial 38 | . . . . 38 . . 1 10 . 14 Average 51 | 1 114 . 61 29 48 8 7 1 9 63 Influence Increases 2870 | 25 530 50 327 339 277 54 191 62 194 821 Destroy 0b10 Robot/C 880 | . 280 40 180 . . 20 . . . 360 Destroy 0b10 Robot/NC 155 | 25 25 . 20 20 15 10 10 . 5 25 Destroy Leader 182 | . 54 10 44 2 2 . . . . 70 Successful Hack 308 | . 20 . 23 89 44 12 26 10 39 45 Select Force Hacks 120 | . 60 . . . 60 . . . . . Disable Machine 60 | . . . . . . . . . . 60 Destroy Structure 340 | . 1 . 15 48 21 12 50 52 15 126 Partial Spotted 450 | . . . 45 75 135 . 105 . 60 30 Lose Combat Pursuer 375 | . 90 . . 105 . . . . 75 105 Influence Decreases 2870 | 25 464 116 241 425 277 50 174 83 169 846 Entered New Map 106 | . . 33 . 48 . . 3 11 . 11 Time Decay 2134 | 25 444 83 241 311 277 40 151 60 103 399 Lost Part 554 | . 20 . . 10 . 10 . 12 66 436 Lost Ally 30 | . . . . 10 . . 20 . . . Purge Threat 46 | . . . . 46 . . . . . . Squads Dispatched 33 | . 3 . 1 4 5 1 2 2 7 8 Investigation 10 | . 2 . . 1 2 1 . . 2 2 Extermination 16 | . . . . 2 1 . 2 2 3 6 Reinforcement 7 | . 1 . 1 1 2 . . . 2 . Assault . | . . . . . . . . . . . Garrison . | . . . . . . . . . . . Intercept . | . . . . . . . . . . . Searches Triggered . | . . . . . . . . . . . Construction Impeded . | . . . . . . . . . . . Haulers Reinforced 1 | . . . . . 1 . . . . . Active Scanning Responses . | . . . . . . . . . . . Cargo Convoy Interrupts . | . . . . . . . . . . . Stealth | -11 -10 -10 -8 -7 -6 -5 -4 -3 -2 -1 --------- Run | Yrd Mat Sub Mat Fac Fac Fac Fac Res Res Acc Distress Signals 5 | . 2 . 2 . . . . . 1 . Communications Jammed 3 | . . . . . . . . . . 3 Distress Signals 3 | . . . . . . . . . . 3 Times Spotted 169 | . 25 5 17 17 3 4 6 13 36 43 Peak Tracking Total 14 | . 4 2 5 4 2 3 3 6 14 11 Tactical Retreats 31 | . 5 . 1 6 2 2 2 3 6 4 ECM-based Alert Blocks 43 | . . . 3 6 4 3 3 7 17 . Traps | -11 -10 -10 -8 -7 -6 -5 -4 -3 -2 -1 ------- Run | Yrd Mat Sub Mat Fac Fac Fac Fac Res Res Acc Traps Triggered 7 | . . . . 1 1 1 3 . 1 . Indirectly . | . . . . . . . . . . . Trap Hack Attempts . | . . . . . . . . . . . Triggered . | . . . . . . . . . . . Disarmed . | . . . . . . . . . . . Reprogrammed . | . . . . . . . . . . . Reused . | . . . . . . . . . . . Traps Extracted . | . . . . . . . . . . . Installed . | . . . . . . . . . . . Triggered . | . . . . . . . . . . . Machines | -11 -10 -10 -8 -7 -6 -5 -4 -3 -2 -1 ---------- Run | Yrd Mat Sub Mat Fac Fac Fac Fac Res Res Acc Machines Disabled 4 | . . . . . . . . . . 4 Max in Single Turn 1 | . . . . . . . . . . 1 Energy Cycler 1 | . . . . . . . . . . 1 Machines Repaired . | . . . . . . . . . . . Machines Dismantled . | . . . . . . . . . . . Machines Sabotaged . | . . . . . . . . . . . Overloaded Fab Kills . | . . . . . . . . . . . Hacking | -11 -10 -10 -8 -7 -6 -5 -4 -3 -2 -1 --------- Run | Yrd Mat Sub Mat Fac Fac Fac Fac Res Res Acc Machines Accessed 65 | . 8 . 5 12 4 4 12 10 6 4 Terminals 38 | . 6 . 4 5 2 4 9 5 2 1 Fabricators 7 | . . . . 2 . . 1 2 1 1 Repair Stations 5 | . . . . 1 . . . . 2 2 Recycling Units 6 | . 2 . 1 1 2 . . . . . Scanalyzers 4 | . . . . 1 . . 1 1 1 . Garrison Access 5 | . . . . 2 . . 1 2 . . Total Hacks 189 | . 22 . 20 26 13 22 42 18 20 6 Successful 100 | . 13 . 12 16 8 10 20 9 8 4 Failed 89 | . 9 . 8 10 5 12 22 9 12 2 Catastrophic 12 | . . . . . 1 1 5 4 1 . Database Lockouts . | . . . . . . . . . . . Manual 98 | . 15 . 12 14 11 20 9 5 10 2 Terminals 130 | . 19 . 19 12 5 22 34 8 9 2 Fabricators 17 | . . . . 2 . . 4 4 5 2 Repair Stations 8 | . . . . 2 . . . . 4 2 Recycling Units 13 | . 3 . 1 1 8 . . . . . Scanalyzers 10 | . . . . 2 . . 3 3 2 . Garrison Access 11 | . . . . 7 . . 1 3 . . Terminal Hacks 31 | . 4 . 5 3 1 1 12 3 1 1 Record 8 | . . . . . . 1 6 1 . . Robot Analysis 3 | . 2 . 1 . . . . . . . Open DSF 3 | . . . . . . . 1 1 1 . Level Access Points 3 | . . . . . 1 . 1 1 . . Branch Access Points 2 | . . . 1 . . . . . . 1 Emergency Access Points 3 | . . . 1 1 . . 1 . . . Terminal Index 1 | . . . . . . . 1 . . . Unreport Threat 1 | . . . . 1 . . . . . . Locate Traps 2 | . 1 . . 1 . . . . . . Dispatch Records 1 | . . . 1 . . . . . . . Transport Status 1 | . . . . . . . 1 . . . Hauler Manifests 1 | . . . 1 . . . . . . . Zone Layout 2 | . 1 . . . . . 1 . . . Fabricator Hacks 8 | . . . . 2 . . 2 2 1 1 Network Status 4 | . . . . 1 . . 1 1 1 . Build 4 | . . . . 1 . . 1 1 . 1 Repair Station Hacks 3 | . . . . 2 . . . . 1 . Scan Component 1 | . . . . 1 . . . . . . Repair 1 | . . . . 1 . . . . . . Refit 1 | . . . . . . . . . 1 . Recycling Unit Hacks . | . . . . . . . . . . . Scanalyzer 7 | . . . . 1 . . 3 2 1 . Retrieve Study 7 | . . . . 1 . . 3 2 1 . Garrison Access Hacks . | . . . . . . . . . . . Unauthorized Hacks 50 | . 8 . 7 8 7 9 3 2 4 2 Terminals 33 | . 6 . 6 3 2 9 3 2 2 . Track 3 | . 1 . . . . 2 . . . . Assimilate 5 | . . . 1 1 . 2 . 1 . . Botnet 20 | . 4 . 4 2 2 4 3 . 1 . Disrupt 3 | . 1 . 1 . . . . 1 . . Operators 2 | . . . . . . 1 . . 1 . Fabricators . | . . . . . . . . . . . Repair Stations 4 | . . . . . . . . . 2 2 Patch 4 | . . . . . . . . . 2 2 Recycling Units 9 | . 2 . 1 1 5 . . . . . Monitor 1 | . . . . . 1 . . . . . Reject 3 | . . . 1 1 1 . . . . . Recyclers 1 | . . . . . 1 . . . . . Tunnel 4 | . 2 . . . 2 . . . . . Scanalyzers . | . . . . . . . . . . . Garrison Access 4 | . . . . 4 . . . . . . Broadcast 1 | . . . . 1 . . . . . . Redirect 1 | . . . . 1 . . . . . . Reprogram 1 | . . . . 1 . . . . . . Watchers 1 | . . . . 1 . . . . . . Data Cores Recovered 2 | . . . . . 1 . . . . 1 Used . | . . . . . . . . . . . Hacking Detections 49 | . 5 . 4 9 2 4 11 8 4 2 Full Trace Events 3 | . 1 . . 1 . 1 . . . . Feedback Events . | . . . . . . . . . . . Feedback Blocked . | . . . . . . . . . . . Robot Schematics Acquired . | . . . . . . . . . . . Robots Built 4 | . . . . . . . 2 2 . . Authchips . | . . . . . . . . . . . Time 116 | . . . . . . . 76 40 . . Total Robot Build Rating 12 | . . . . . . . 10 2 . . Part Schematics Acquired . | . . . . . . . . . . . Parts Built 2 | . . . . 1 . . . . . 1 Authchips . | . . . . . . . . . . . Time 163 | . . . . 117 . . . . . 46 Total Part Build Rating 16 | . . . . 7 . . . . . 9 Part Studies Acquired 7 | . . . . 1 . . 3 2 1 . Parts Repaired 1 | . . . . 1 . . . . . . Time 22 | . . . . 22 . . . . . . Parts Recycled . | . . . . . . . . . . . Recycled Matter . | . . . . . . . . . . . Retrieved Matter . | . . . . . . . . . . . Retrieved Components . | . . . . . . . . . . . Parts Scanalyzed . | . . . . . . . . . . . Part Schematics Acquired . | . . . . . . . . . . . Parts Damaged . | . . . . . . . . . . . Bothacking | -11 -10 -10 -8 -7 -6 -5 -4 -3 -2 -1 ------------ Run | Yrd Mat Sub Mat Fac Fac Fac Fac Res Res Acc Used RIF Installer . | . . . . . . . . . . . Robots Hacked . | . . . . . . . . . . . Non-combat . | . . . . . . . . . . . Combat . | . . . . . . . . . . . Robot Hacks Applied . | . . . . . . . . . . . Relay Couplers Released . | . . . . . . . . . . . Fabnet Peak Effective % . | . . . . . . . . . . . Robots Rewired . | . . . . . . . . . . . Allies Hacked 1 | . . . . . . . 1 . . . Hacks Repelled . | . . . . . . . . . . . Allies | -11 -10 -10 -8 -7 -6 -5 -4 -3 -2 -1 -------- Run | Yrd Mat Sub Mat Fac Fac Fac Fac Res Res Acc Total Allies 5 | . . . 1 . . . 2 2 . . Largest Group 2 | . . . 1 1 . . 2 1 . . Highest-Rated Group 40 | . . . 10 10 . . 40 8 . . Highest-Rated Ally 20 | . . . 10 10 . . 20 8 . . Total Orders . | . . . . . . . . . . . Ally Attacks . | . . . . . . . . . . . Total Damage . | . . . . . . . . . . . Kills . | . . . . . . . . . . . Allies Corrupted . | . . . . . . . . . . . Allies Melted . | . . . . . . . . . . . Intel | -11 -10 -10 -8 -7 -6 -5 -4 -3 -2 -1 ------- Run | Yrd Mat Sub Mat Fac Fac Fac Fac Res Res Acc Active Infowar (turns) 4626 | 23 102 . 40 653 664 97 835 442 344 1426 Sensors 2216 | . . . . . 512 97 835 442 298 32 Terrain 1348 | . . . . . . . . . . 1348 Structural 1341 | . . . . . . . . . . 1341 Traps 1835 | . . . . 652 271 1 640 271 . . Seismic 125 | 23 102 . . . . . . . . . Cloaking 67 | . . . . . . . . 38 29 . Jamming 1706 | . . . . . . . . 329 . 1377 ECM 1459 | . . . 40 65 385 37 441 167 324 . Robot Analysis Total 3 | . 2 . 1 . . . . . . . Derelict Logs Recovered 1 | . . 1 . . . . . . . . Drone Launches . | . . . . . . . . . . . Drone Recoveries . | . . . . . . . . . . . Exploration | -11 -10 -10 -8 -7 -6 -5 -4 -3 -2 -1 ------------- Run | Yrd Mat Sub Mat Fac Fac Fac Fac Res Res Acc Turns Passed 7652 | 144 1184 592 650 800 664 97 835 442 350 1894 Spaces Moved 8342 | 68 646 514 612 1191 857 246 1003 1110 1028 1067 Core 327 | 14 . . . . . . . . 1 312 Treads 457 | . . . 186 . . . . . . 271 Legs 1023 | 54 554 . . . . . . . . 415 Wheels 674 | . 92 514 15 . . . . . . 53 Hover 16 | . . . . . . . . . . 16 Flight 5845 | . . . 411 1191 857 246 1003 1110 1027 . Fastest Speed 19 | 50 95 95 28 28 24 24 21 21 19 50 Average Speed 54 | 138 143 95 70 28 26 24 23 22 22 118 Slowest Speed 800 | 200 330 95 176 28 28 26 28 103 200 800 Overloaded Moves . | . . . . . . . . . . . Propulsion Burnouts . | . . . . . . . . . . . Robots Hopped 5 | . . . 1 . . . 2 2 . . Potential Cave-ins . | . . . . . . . . . . . Cave-ins Triggered . | . . . . . . . . . . . Exploration Rate (%) 26 | 4 63 34 36 29 23 6 30 23 17 27 Regions Visited 10 Branch Regions 1 Pre-discovered Areas 4 | . 2 . . . 2 . . . . . Known Exits Taken 5 | . . . . 1 1 1 1 1 . . Unknown Exits Taken 5 | 1 1 1 1 . . . . . 1 . Scrap Searched . | . . . . . . . . . . . Spaces Dug 148 | . . 8 14 42 21 6 26 21 . 10 Terrain Destroyed 199 | . . 8 14 47 21 6 26 28 5 44 Melee 134 | . . 8 14 42 21 6 26 11 . 6 Projectile 20 | . . . . . . . . 10 . 10 AOE 45 | . . . . 5 . . . 7 5 28 Terrain Rammed . | . . . . . . . . . . . Walls Destroyed . | . . . . . . . . . . . Machines Disabled . | . . . . . . . . . . . Actions | -11 -10 -10 -8 -7 -6 -5 -4 -3 -2 -1 --------- Run | Yrd Mat Sub Mat Fac Fac Fac Fac Res Res Acc Total 10801 | 94 781 568 754 1598 1265 272 1564 1280 1131 1494 Wait 1579 | . 31 4 40 309 347 7 488 114 58 181 Move 8322 | 67 645 513 609 1190 856 245 998 1105 1027 1067 Hop 5 | . . . 1 . . . 2 2 . . Pick Up 69 | 9 11 1 10 2 6 1 6 5 3 15 Fast Attach 112 | 7 5 1 9 4 10 2 8 6 2 58 Attach 37 | . 2 . 2 5 2 1 1 6 6 12 Detach 16 | . 1 . . 5 1 1 . 3 5 . Swap 51 | . 6 2 10 3 3 1 4 8 4 10 Drop 103 | 1 13 2 23 5 13 4 6 8 6 22 Fire 230 | 10 64 5 30 7 1 . . 12 10 91 Melee 216 | . . 40 20 53 26 10 36 11 . 20 Ram 3 | . . . . . . . . . . 3 Kick 5 | . 3 . . . . . . . . 2 Crush 13 | . . . . . . . . . . 13 Escape Stasis 40 | . . . . 15 . . 15 . 10 . Rewire . | . . . . . . . . . . . Trap . | . . . . . . . . . . . Miscellaneous . | . . . . . . . . . . . Route ------- -11/Scrapyard -10/Materials (discovered 3 exits: [*Mat x2] / [*Sub]) -10/Subcaves (discovered 4 exits: *Mat x2 / [*Rec] / [*Scr]) -8/Materials -7/Factory (discovered 2 exits: *Fac / *Low) -6/Factory (discovered 4 exits: *Fac x4) -5/Factory -4/Factory (discovered 4 exits: *Res x4) -3/Research (discovered 3 exits: *Res x3) -2/Research -1/Access (discovered 1 exit: Com) History --------- Turn | Location | Event 24 | -11/Scrapyard | Discovered new exit (range 14) 145 | -11/Scrapyard | Entered Materials 318 | -10/Materials | Build established: Mutant 726 | -10/Materials | Discovered new exit (range 10) 831 | -10/Materials | Discovered new exit (range 11) 1064 | -10/Materials | Discovered new exit (range 6) 1329 | -10/Materials | Entered Subcaves 1330 | -10/Subcaves | Approached by a straggling Scientist 1334 | -10/Subcaves | A swath of the cavern ceiling suddenly collapsed 1385 | -10/Subcaves | Discovered new exit (range 10) 1386 | -10/Subcaves | Shifting Twisted Machinery released Sub. Laser 1392 | -10/Subcaves | Shifting Twisted Machinery released Mak. Sword 1561 | -10/Subcaves | A swath of the cavern ceiling suddenly collapsed 1637 | -10/Subcaves | Core integrity fell below 50% 1653 | -10/Subcaves | Scientist uncovered a shortcut to Scraptown 1655 | -10/Subcaves | Learned 4 Materials zone layouts 1659 | -10/Subcaves | Discovered new exit (range 14) 1706 | -10/Subcaves | Shifting Twisted Machinery released Riot Gun 1745 | -10/Subcaves | Shifting Twisted Machinery released Sub. Machine Gun 1883 | -10/Subcaves | Discovered new exit (range 12) 1921 | -10/Subcaves | Entered Materials 1921 | -8/Materials | Evolved 4 slots: Propulsion x2, Utility x2 2237 | -8/Materials | Build established: Hacker-Mutant 2559 | -8/Materials | Discovered new exit (range 3) 2571 | -8/Materials | Entered Factory 2571 | -7/Factory | Accompanied by 1 ally 2571 | -7/Factory | Evolved 2 slots: Utility x2 2669 | -7/Factory | Repaired Mak. Sword 2690 | -7/Factory | Build established: Scavenger-Sprinter 3251 | -7/Factory | Fabricated Micro-nuke Launcher? 3356 | -7/Factory | Discovered new exit (range 5) 3359 | -7/Factory | Identified exit to Lower Caves 3369 | -7/Factory | Discovered new exit (range 5) 3370 | -7/Factory | Identified exit to Factory 3371 | -7/Factory | Entered another Factory area 3371 | -6/Factory | Evolved 2 slots: Propulsion x1, Utility x1 3936 | -6/Factory | Build established: Hacker-Sprinter 3943 | -6/Factory | Identified exit to Factory 4035 | -6/Factory | Entered another Factory area 4035 | -5/Factory | Evolved 2 slots: Propulsion x1, Utility x1 4126 | -5/Factory | Discovered new exit (range 13) 4131 | -5/Factory | Identified exit to Factory 4132 | -5/Factory | Entered another Factory area 4132 | -4/Factory | Evolved 2 slots: Propulsion x1, Utility x1 4156 | -4/Factory | Identified exit to DSF 4308 | -4/Factory | Identified exit to Research 4397 | -4/Factory | Fabricated R-10 Processor? 4402 | -4/Factory | Build established: Hacker-Ninja 4967 | -4/Factory | Entered Research 4967 | -3/Research | Evolved 2 slots: Power x1, Utility x1 4999 | -3/Research | Identified exit to DSF 5259 | -3/Research | Identified exit to Research 5291 | -3/Research | Fabricated R-06 Scavenger? 5409 | -3/Research | Entered another Research area 5409 | -2/Research | Evolved 2 slots: Propulsion x1, Utility x1 5481 | -2/Research | Identified exit to DSF 5513 | -2/Research | Build established: Hacker-Sprinter 5570 | -2/Research | Watched by a mysterious "MATRIX" hacker 5745 | -2/Research | Discovered new exit (range 8) 5759 | -2/Research | Entered Access 5759 | -1/Access | Evolved 2 slots: Power x1, Utility x1 5790 | -1/Access | Lost 16 parts (7n9u) 5962 | -1/Access | Build established: Hacker-Mutant 6007 | -1/Access | Identified exit to Command 6506 | -1/Access | Build established: Scavenger-Assassin 6520 | -1/Access | Energy Cycler disabled 6544 | -1/Access | System corruption reached 10% 6585 | -1/Access | Lost 3 parts (2n1w) 6634 | -1/Access | Lost 5 parts (2p2n1u) 7015 | -1/Access | Build established: Scavenger-Skirmisher 7376 | -1/Access | Fabricated Biometal Heavy Treads? 7388 | -1/Access | Found Hvy. Insulated Plating 7421 | -1/Access | Core integrity fell below 50% 7502 | -1/Access | Lost 33 parts (4p9n12u8w) 7617 | -1/Access | Core integrity fell below 20% 7626 | -1/Access | System corruption reached 30% 7651 | -1/Access | Spotted B-99 Colossus 7653 | -1/Access | Destroyed by S-43 Plague with Heavy Machine Gun Last Messages --------------- 07593_ System corrupted: Component data lost. 07609_ <:<87LJGUWBQO7T%12ADILLTT1LK 07609_ Acquired Lrn. Sensor Array. 07622_ Imp. Antigrav System destroyed. 07624_ System corrupted: Matter fused (-7). 07632_ Slammed into P-80 Master. 07635_ Penetrated by Slug. 07635_ Lrn. Sensor Array destroyed. 07635_ Penetrated by Slug. 07639_ System corrupted: Component data lost. 07641_ Biometal Heavy Treads destroyed. 07641_ Lrn. Sensor Array destroyed. 07652_ C-30 ARC bursts open, deploying its payload. 07652_ S-43 Plague unfolds itself. 07652_ Lrn. Sensor Array destroyed. 07652_ Penetrated by Slug. 07652_ Slug penetrates Wall. 07652_ Penetrated by Slug. 07652_ Adv. Hacking Suite destroyed. 07652_ Slug penetrates Wall. Map ----- +----------------------------------------------------+ | ???# #? """ #?????????????????????????? | | ???# #? """ #?????????????????????????? | | ???# #?? " #?????????????????????????? | | ???# ##########?????????????????????????? | | ??## ## #??????????????????????????? | | ??# # #??????????????????????????? | | ??# # #??????????????????????????? | | ??# / #??????????????????????????? | | ??# ! # #??????????????????????????? | | ??# # #??????????????????????????? | | ??### ##########??????????????????????????? | | ????# #???????????????????????????????????? | | ????# #???????????????????????????????????? | | ????# #???????????????????????????????????? | | ????# #???????????????????????????????????? | | ????# ###?????????????????????????????????? | | ????# +?????????????????????????????????? | | ????# ###?????????????????????????????????? | | ????# #???????????????????????????????????? | | ????# #???????????????????????????????????? | | ????# #???????????????????????????????????? | | ????# #???????????????????????????????????? | | ????# #???????????????????????????????????? | | ????# #???????????????????????????????????? | | ????# #####################???????????????? | | ????# p @ ????????? | | ????# % ! #????????? | | ????# #????????? | | ????# ?????????? | | ????# ! ?????????? | | ????# ??????????? | | ????# ??????????? | | ????# ss#;BB####??????????? | | ????# s ##BB#?????????????? | | ????# s%#?###?????????????? | | ????#+################# #?????????????????? | | ??????????????????????? #?????????????????? | | ????????????????????????#?????????????????? | | ??????????????????????????????????????????? | | ???????????????????????H??????????????????? | | ??????????????????????????????????????????? | | ??????????????????????????????????????????? | | ??????????????????????????????????????????? | | ??????????????????????????????????????????? | | ??????????????????????????????????????????? | | ??????????????????????????????????????????? | | ??????????????????????????????????????????? | | ??????????????????????????????????????????? | | ??????????????????????????????????????????? | | ??????????????????????????????????????????? | +----------------------------------------------------+ Best States ------------- Heat Dissipation 90 Energy Generation 55 Energy Capacity 390 Matter Stores 300 Matter Capacity 300 Sight Range 16 Robot Scan Range 18 Terrain Scan Range 16 Terrain Scan Density 210 ECM Strength 1 Jamming Range 16 Cloak Strength 3 Power Amplification 30 Armor Coverage 600 Resistance: EM 30 Point Defense Rating 160 Evasion (%) 78 Targeting Accuracy 20 Target Analysis 8 Recoil Reduction 5 Offensive Hacking 14 Defensive Hacking 24 Item Schematics ----------------- None Robot Schematics ------------------ None Fabricated ------------ Micro-nuke Launcher | x1 | -7/Factory | Preloaded R-10 Processor | x2 | -4/Factory | Preloaded R-06 Scavenger | x2 | -3/Research | Preloaded Biometal Heavy Treads | x1 | -1/Access | Preloaded Repaired ---------- Mak. Sword | 22% | -7/Factory Studied --------- Flight Unit | -7/Factory | Hacked Lgt. Fission Core | -4/Factory | Hacked Impulse Thruster | -4/Factory | Hacked Lgt. Deuterium Engine | -4/Factory | Hacked Nuclear Pulse Array | -3/Research | Hacked Adv. Datajack | -3/Research | Hacked Lgt. Particle Reactor | -2/Research | Hacked Alien Tech Used ----------------- None Achievements -------------- Denied? Dodgeball, But With Guns Explosive Keycard Physics Hates This One Trick Rockin' Loadout Challenges ------------ None Game ------ Seed ArmageddonLinkedStabilizer Manual? 0 Play Time 03:03:26 Cumulative 97.1 hours Start 2026.08.21 @ 19:03:33 End 2026.08.22 @ 02:39:14 Sessions 1 Manual Loads 0 Difficulty Rogue Special Mode None Game No. 89 Rogue 87 Adventurer 2 Explorer 0 Win Type - Total 0 Types 0/0/0/0/0/0/0/0/0/0 Lore% 46 Gallery% 40 Achievement% 32 Wizard Run 0 Options --------- Layout 0 ASCII 0 Keyboard 0 Movement Mouse Keybinds 0 Fullscreen 2 Font 24/Smallcaps Map View 76x50 Zoom Use 0% Tactical HUD 1 Map Filters NONE Filters NONE Steam 1 RUN: 445d82a1-d73c-4131-9996-5caf13ec6ab2